fUST/lending_fUST_20250624
["ID","MTS","AMOUNT","RATE_DAILY","PERIOD"]
[367243462,1750713051489,-151.0,0.00020345,2]
[367243463,1750713051498,-431.018653,0.00020345,2]
[367243464,1750713051509,-151.0,0.00020345,2]
[367243465,1750713051518,-431.018653,0.00020345,2]
[367243466,1750713051527,-151.0,0.00020368,2]
[367243467,1750713051536,-151.0,0.00020368,2]
[367243468,1750713051549,-151.0,0.00020368,2]
[367243469,1750713051559,-151.0,0.00020368,2]
[367243470,1750713051568,-151.0,0.00020368,2]
[367243471,1750713051577,-500.0,0.00020368,2]
[367243472,1750713051587,-1500.0,0.00020368,2]
[367243473,1750713051597,-985.83242567,0.00020368,2]
[367243474,1750713051606,-1500.0,0.00020368,2]
[367243475,1750713051615,-1500.0,0.00020368,2]
[367243476,1750713051624,-1000.0,0.00020371,2]
[367243477,1750713051633,-500.0,0.00020371,2]
[367243478,1750713051643,-2248.19217842,0.00020375,2]
[367243479,1750713051652,-1000.0,0.00020376,2]
[367243480,1750713051661,-2768.31173495,0.00020384,2]
[367243481,1750713051670,-151.0,0.000205,3]
[367243482,1750713051679,-500.0,0.00020547,7]
[367243483,1750713051688,-882.0,0.00020554,2]
[367243484,1750713051697,-151.0,0.00020554,2]
[367243485,1750713051706,-151.0,0.00020554,2]
[367243486,1750713051715,-215.0738,0.00020579,2]
[367243487,1750713051724,-460.0,0.00020588,2]
[367243488,1750713051733,-1917.77,0.0002059,2]
[367243489,1750713051742,-460.0,0.0002059,2]
[367243490,1750713051751,-1996.47,0.0002059,2]
[367243491,1750713051760,-460.0,0.00020592,2]
[367243492,1750713051769,-460.0,0.00020592,2]
[367243493,1750713051779,-2458.42,0.00020592,2]
[367243494,1750713051788,-768.95,0.00020592,2]
[367243495,1750713051797,-499.06,0.00020592,2]
[367243496,1750713051806,-1326.42,0.00020592,2]
[367243497,1750713051814,-1916.14,0.00020592,2]
[367243498,1750713051824,-2981.58,0.00020592,2]
[367243499,1750713051833,-561.49,0.00020592,2]
[367243500,1750713051843,-998.87,0.00020592,2]
[367243501,1750713051852,-746.54,0.00020592,2]
[367243502,1750713051861,-1197.46,0.00020592,2]
[367243503,1750713051870,-868.07,0.00020592,2]
[367243504,1750713051879,-608.93,0.00020592,2]
[367243505,1750713051888,-3607.91,0.00020592,2]
[367243506,1750713051897,-1233.5,0.00020592,2]
[367243507,1750713051906,-852.78,0.00020592,2]
[367243508,1750713051915,-811.33,0.00020592,2]
[367243509,1750713051924,-460.0,0.00020592,2]
[367243510,1750713051933,-460.0,0.00020599,2]
[367243511,1750713051943,-460.0,0.00020599,2]
[367243512,1750713051952,-460.0,0.00020599,2]
[367243513,1750713051961,-555.63,0.00020599,2]
[367243514,1750713051971,-460.0,0.00020599,2]
[367243515,1750713051980,-460.0,0.00020599,2]
[367243516,1750713051988,-460.0,0.00020599,2]
[367243517,1750713051997,-834.36,0.00020599,2]
[367243518,1750713052006,-460.0,0.00020599,2]
[367243519,1750713052016,-460.0,0.00020599,2]
[367243520,1750713052027,-320.98,0.00020599,2]
[367243521,1750713052036,-546.86903497,0.00020599,2]
[367243522,1750713052047,-460.0,0.00020599,2]
[367243523,1750713052057,-460.0,0.00020599,2]
[367243524,1750713052069,-495.61,0.00020599,2]
[367243525,1750713052080,-460.0,0.00020599,2]
[367243526,1750713052089,-460.0,0.00020599,2]
[367243527,1750713052098,-460.0,0.00020599,2]
[367243528,1750713052107,-487.28,0.00020599,2]
[367243529,1750713052116,-460.0,0.00020599,2]
[367243530,1750713052125,-460.0,0.00020599,2]
[367243531,1750713052135,-460.0,0.00020599,2]
[367243532,1750713052145,-460.0,0.00020599,2]
[367243533,1750713052154,-460.0,0.00020599,2]
[367243534,1750713052163,-460.0,0.00020599,2]
[367243535,1750713052172,-460.0,0.00020599,2]
[367243536,1750713052182,-1007.44,0.00020599,2]
[367243537,1750713052192,-460.0,0.00020599,2]
[367243538,1750713052203,-778.84,0.00020599,2]
[367243539,1750713052212,-691.92,0.00020599,2]
[367243540,1750713052222,-681.31,0.00020599,2]
[367243541,1750713052231,-673.85,0.00020599,2]
[367243542,1750713052240,-460.0,0.00020599,2]
[367243543,1750713052250,-688.21,0.00020599,2]
[367243544,1750713052259,-460.0,0.00020599,2]
[367243545,1750713052268,-460.0,0.00020599,2]
[367243546,1750713052278,-460.0,0.00020599,2]
[367243547,1750713052287,-460.0,0.00020599,2]
[367243548,1750713052296,-611.84,0.00020599,2]
[367243549,1750713052306,-1114.83,0.00020599,2]
[367243550,1750713052316,-460.0,0.00020599,2]
[367243551,1750713052326,-460.0,0.00020599,2]
[367243552,1750713052336,-872.33,0.00020599,2]
[367243553,1750713052345,-460.0,0.00020599,2]
[367243554,1750713052355,-460.0,0.00020599,2]
[367243555,1750713052366,-460.0,0.00020599,2]
[367243556,1750713052377,-460.0,0.00020599,2]
[367243557,1750713052387,-648.26,0.00020599,2]
[367243558,1750713052397,-460.0,0.00020599,2]
[367243559,1750713052407,-1112.93,0.00020599,2]
[367243560,1750713052417,-460.0,0.00020601,2]
[367243561,1750713052426,-267.76,0.00020602,2]
[367243562,1750713052435,-460.0,0.00020603,2]
[367243563,1750713052444,-460.0,0.00020603,2]
[367243564,1750713052454,-460.0,0.00020603,2]
[367243565,1750713052466,-460.0,0.00020603,2]
[367243566,1750713052475,-151.0,0.00020603,2]
[367243567,1750713052485,-217.35221535,0.00020603,2]
[367243568,1750713052494,-277.35994,0.00020603,2]
[367243569,1750713052504,-1763.36,0.00020603,2]
[367243570,1750713052515,-735.83,0.00020603,2]
[367243571,1750713052524,-6806.59,0.00020603,2]
[367243572,1750713052534,-1456.91,0.00020603,2]
[367243573,1750713052544,-1053.14,0.00020603,2]
[367243574,1750713052554,-460.0,0.00020603,2]
[367243575,1750713052563,-799.06,0.00020603,2]
[367243576,1750713052573,-460.0,0.00020603,2]
[367243577,1750713052583,-1090.77,0.00020603,2]
[367243578,1750713052593,-160.841049,0.00020603,2]
[367243579,1750713052603,-749.477381,0.00020603,2]
[367243580,1750713052612,-749.477381,0.00020603,2]
[367243581,1750713052622,-938.86,0.00020603,2]
[367243582,1750713052631,-151.0,0.00020603,2]
[367243583,1750713052641,-297.393088,0.00020603,2]
[367243584,1750713052650,-2416.82,0.00020603,2]
[367243585,1750713052659,-951.38,0.00020603,2]
[367243586,1750713052668,-564.51,0.00020603,2]
[367243587,1750713052677,-151.0,0.00020604,2]
[367243588,1750713052686,-151.0,0.00020604,2]
[367243589,1750713052695,-222.134489,0.00020604,2]
[367243590,1750713052704,-222.134489,0.00020604,2]
[367243591,1750713052713,-168.543402,0.00020604,2]
[367243592,1750713052723,-168.543402,0.00020604,2]
[367243593,1750713052732,-460.0,0.00020604,2]
[367243594,1750713052741,-460.0,0.00020604,2]
[367243595,1750713052751,-460.0,0.00020604,2]
[367243596,1750713052760,-227.39,0.00020604,2]
[367243597,1750713052769,-638.1,0.00020604,2]
[367243598,1750713052779,-460.0,0.00020604,2]
[367243599,1750713052788,-460.0,0.00020604,2]
[367243600,1750713052798,-594.5,0.00020604,2]
[367243601,1750713052806,-460.0,0.00020604,2]
[367243602,1750713052816,-741.03,0.00020604,2]
[367243603,1750713052825,-460.0,0.00020604,2]
[367243604,1750713052842,-749.26,0.00020604,2]
[367243605,1750713052851,-460.0,0.00020604,2]
[367243606,1750713052860,-526.39,0.00020604,2]
[367243607,1750713052870,-2964.55,0.00020604,2]
[367243608,1750713052879,-460.0,0.00020604,2]
[367243609,1750713052889,-460.0,0.00020604,2]
[367243610,1750713052898,-767.071298,0.00020604,2]
[367243611,1750713052910,-767.071298,0.00020604,2]
[367243612,1750713052920,-2045.16,0.00020604,2]
[367243613,1750713052929,-476.44,0.00020604,2]
[367243614,1750713052939,-610.23,0.00020604,2]
[367243615,1750713052948,-460.0,0.00020604,2]
[367243616,1750713052959,-3382.79,0.00020604,2]
[367243617,1750713052969,-588.75,0.00020604,2]
[367243618,1750713052978,-2795.99,0.00020604,2]
[367243619,1750713052987,-460.0,0.00020604,2]
[367243620,1750713052996,-460.0,0.00020604,2]
[367243621,1750713053007,-1238.41,0.00020604,2]
[367243622,1750713053017,-151.0,0.00020605,2]
[367243623,1750713053026,-151.0,0.00020605,2]
[367243624,1750713053035,-151.0,0.00020605,2]
[367243625,1750713053044,-460.0,0.00020607,2]
[367243626,1750713053053,-460.0,0.00020607,2]
[367243627,1750713053063,-151.0,0.00020607,2]
[367243628,1750713053072,-258.328628,0.00020607,2]
[367243629,1750713053084,-757.95,0.00020607,2]
[367243630,1750713053093,-460.0,0.00020607,2]
[367243631,1750713053103,-468.15,0.00020607,2]
[367243632,1750713053112,-320.415296,0.00020607,2]
[367243633,1750713053121,-320.415296,0.00020607,2]
[367243634,1750713053131,-460.0,0.00020607,2]
[367243635,1750713053140,-1025.727858,0.00020607,2]
[367243636,1750713053149,-1025.727858,0.00020607,2]
[367243637,1750713053158,-460.0,0.00020607,2]
[367243638,1750713053167,-460.0,0.00020607,2]
[367243639,1750713053177,-218.53,0.00020607,2]
[367243640,1750713053186,-460.0,0.00020607,2]
[367243641,1750713053195,-460.0,0.00020607,2]
[367243642,1750713053205,-472.41,0.00020607,2]
[367243643,1750713053215,-696.67,0.00020607,2]
[367243644,1750713053224,-460.0,0.00020607,2]
[367243645,1750713053233,-632.2,0.00020607,2]
[367243646,1750713053243,-460.0,0.00020607,2]
[367243647,1750713053252,-151.0,0.00020614,2]
[367243648,1750713053261,-2907.4199,0.00020614,2]
[367243649,1750713053270,-2907.4199,0.00020614,2]
[367243650,1750713053279,-460.0,0.00020614,2]
[367243651,1750713053289,-460.0,0.00020614,2]
[367243652,1750713053299,-599.17800727,0.00020614,2]
[367243653,1750713053308,-460.0,0.00020614,2]
[367243654,1750713053317,-318.474938,0.00020614,2]
[367243655,1750713053327,-318.474938,0.00020614,2]
[367243656,1750713053339,-208.068161,0.00020614,2]
[367243657,1750713053349,-208.068161,0.00020614,2]
[367243658,1750713053359,-151.342516,0.00020614,2]
[367243659,1750713053368,-151.342516,0.00020614,2]
[367243660,1750713053378,-292.776368,0.00020614,2]
[367243661,1750713053387,-292.776368,0.00020614,2]
[367243662,1750713053397,-555.818725,0.00020614,2]
[367243663,1750713053406,-293.673515,0.00020614,2]
[367243664,1750713053415,-555.818725,0.00020614,2]
[367243665,1750713053425,-293.673515,0.00020614,2]
[367243666,1750713053434,-460.0,0.00020615,2]
[367243667,1750713053443,-460.0,0.00020615,2]
[367243668,1750713053452,-460.0,0.00020615,2]
[367243669,1750713053463,-460.0,0.00020615,2]
[367243670,1750713053475,-460.0,0.00020615,2]
[367243671,1750713053485,-460.0,0.00020615,2]
[367243672,1750713053497,-460.0,0.00020615,2]
[367243673,1750713053506,-431.3045092,0.00020615,2]
[367243674,1750713053517,-151.0,0.00020619,2]
[367243675,1750713053526,-153.716526,0.00020619,2]
[367243676,1750713053535,-151.0,0.00020619,2]
[367243677,1750713053545,-262.488634,0.00020619,2]
[367243678,1750713053554,-262.488634,0.00020619,2]
[367243679,1750713053563,-168.0,0.00020652,2]
[367243680,1750713053572,-193.38933777,0.00020678,2]
[367243681,1750713053581,-113057.29153514,0.00020691,2]
[367243682,1750713053591,-289.831834,0.00020691,2]
[367243683,1750713053600,-289.831834,0.00020691,2]
[367243684,1750713053609,-151.0,0.00020691,2]
[367243685,1750713053618,-151.0,0.00020691,2]
[367243686,1750713053628,-151.0,0.00020691,2]
[367243687,1750713053783,-151.0,0.00020691,2]
[367243688,1750713053793,-431.018653,0.00020691,2]
[367243689,1750713053802,-431.018653,0.00020691,2]
[367243690,1750713053812,-151.0,0.00020691,2]
[367243691,1750713053821,-151.0,0.00020691,2]
[367243692,1750713053831,-151.0,0.00020691,2]
[367243693,1750713053840,-151.0,0.00020691,2]
[367243694,1750713053849,-320.415296,0.00020691,2]
[367243695,1750713053859,-320.415296,0.00020691,2]
[367243696,1750713053868,-151.0,0.00020691,2]
[367243697,1750713053878,-151.0,0.00020691,2]
[367243698,1750713053887,-151.0,0.00020691,2]
[367243699,1750713053897,-222.134489,0.00020691,2]
[367243700,1750713053907,-222.134489,0.00020691,2]
[367243701,1750713053917,-1025.727858,0.00020691,2]
[367243702,1750713053926,-1025.727858,0.00020691,2]
[367243703,1750713053935,-168.543402,0.00020691,2]
[367243704,1750713053945,-151.0,0.00020691,2]
[367243705,1750713053955,-168.543402,0.00020691,2]
[367243706,1750713053963,-151.0,0.00020691,2]
[367243707,1750713053972,-151.0,0.00020691,2]
[367243708,1750713053982,-151.0,0.00020691,2]
[367243709,1750713053991,-151.0,0.00020691,2]
[367243710,1750713054001,-151.0,0.00020691,2]
[367243711,1750713054010,-170.504754,0.00020691,2]
[367243712,1750713054019,-170.504754,0.00020691,2]
[367243713,1750713054028,-151.0,0.00020691,2]
[367243714,1750713054037,-767.071298,0.00020691,2]
[367243715,1750713054046,-767.071298,0.00020691,2]
[367243716,1750713054057,-151.0,0.00020691,2]
[367243717,1750713054066,-151.0,0.00020691,2]
[367243718,1750713054075,-749.477381,0.00020691,2]
[367243719,1750713054086,-749.477381,0.00020691,2]
[367243720,1750713054095,-151.0,0.00020691,2]
[367243721,1750713054105,-355.46739128,0.0002074,2]
[367243722,1750713054114,-785.89961003,0.00020744,2]
[367243723,1750713054123,-2248.19217842,0.00020788,2]
[367243724,1750713054132,-8680.42014714,0.000208,2]
[367243725,1750713054142,-265.21202982,0.00020801,2]
[367243726,1750713054151,-168.0,0.00020825,2]
[367243727,1750713054161,-151.0,0.00020841,2]
[367243728,1750713054170,-355.46739128,0.00020849,2]
[367243729,1750713054180,-460.0,0.00020862,2]
[367243730,1750713054189,-1917.77,0.00020864,2]
[367243731,1750713054199,-460.0,0.00020864,2]
[367243732,1750713054208,-1996.47,0.00020864,2]
[367243733,1750713054218,-460.0,0.00020866,2]
[367243734,1750713054227,-460.0,0.00020866,2]
[367243735,1750713054237,-2458.42,0.00020866,2]
[367243736,1750713054246,-768.95,0.00020866,2]
[367243737,1750713054255,-499.06,0.00020866,2]
[367243738,1750713054265,-1326.42,0.00020866,2]
[367243739,1750713054275,-1916.14,0.00020866,2]
[367243740,1750713054284,-2981.58,0.00020866,2]
[367243741,1750713054293,-561.49,0.00020866,2]
[367243742,1750713054303,-998.87,0.00020866,2]
[367243743,1750713054312,-746.54,0.00020866,2]
[367243744,1750713054321,-1197.46,0.00020866,2]
[367243745,1750713054331,-868.07,0.00020866,2]
[367243746,1750713054340,-608.93,0.00020866,2]
[367243747,1750713054350,-3607.91,0.00020866,2]
[367243748,1750713054359,-1233.5,0.00020866,2]
[367243749,1750713054368,-852.78,0.00020866,2]
[367243750,1750713054378,-811.33,0.00020866,2]
[367243751,1750713054387,-460.0,0.00020866,2]
[367243752,1750713054397,-460.0,0.00020873,2]
[367243753,1750713054406,-460.0,0.00020873,2]
[367243754,1750713054416,-493.44426123,0.00020873,2]
[367243755,1750713054425,-555.63,0.00020873,2]
[367243756,1750713054434,-460.0,0.00020873,2]
[367243757,1750713054443,-372.35,0.00020873,2]
[367243758,1750713054453,-834.36,0.00020873,2]
[367243759,1750713054463,-286.92,0.00020873,2]
[367243760,1750713054474,-460.0,0.00020873,2]
[367243761,1750713054483,-460.0,0.00020873,2]
[367243762,1750713054492,-460.0,0.00020873,2]
[367243763,1750713054501,-460.0,0.00020873,2]
[367243764,1750713054512,-460.0,0.00020873,2]
[367243765,1750713054522,-460.0,0.00020873,2]
[367243766,1750713054531,-460.0,0.00020873,2]
[367243767,1750713054543,-460.0,0.00020873,2]
[367243768,1750713054553,-460.0,0.00020873,2]
[367243769,1750713054562,-460.0,0.00020873,2]
[367243770,1750713054572,-460.0,0.00020873,2]
[367243771,1750713054582,-460.0,0.00020873,2]
[367243772,1750713054593,-1007.44,0.00020873,2]
[367243773,1750713054602,-460.0,0.00020873,2]
[367243774,1750713054611,-778.84,0.00020873,2]
[367243775,1750713054621,-691.92,0.00020873,2]
[367243776,1750713054630,-681.31,0.00020873,2]
[367243777,1750713054640,-673.85,0.00020873,2]
[367243778,1750713054649,-460.0,0.00020873,2]
[367243779,1750713054658,-688.21,0.00020873,2]
[367243780,1750713054668,-460.0,0.00020873,2]
[367243781,1750713054677,-460.0,0.00020873,2]
[367243782,1750713054686,-460.0,0.00020873,2]
[367243783,1750713054695,-460.0,0.00020873,2]
[367243784,1750713054705,-611.84,0.00020873,2]
[367243785,1750713054714,-1114.83,0.00020873,2]
[367243786,1750713054723,-286.56,0.00020873,2]
[367243787,1750713054733,-872.33,0.00020873,2]
[367243788,1750713054742,-460.0,0.00020873,2]
[367243789,1750713054751,-321.52029599,0.00020873,2]
[367243790,1750713054760,-424.77385558,0.00020873,2]
[367243791,1750713054770,-460.0,0.00020873,2]
[367243792,1750713054780,-555.818725,0.00020873,2]
[367243793,1750713054790,-555.818725,0.00020873,2]
[367243794,1750713054799,-648.26,0.00020873,2]
[367243795,1750713054809,-185.33,0.00020873,2]
[367243796,1750713054818,-1112.93,0.00020873,2]
[367243797,1750713054828,-460.0,0.00020875,2]
[367243798,1750713054839,-460.0,0.00020876,2]
[367243799,1750713054849,-460.0,0.00020876,2]
[367243800,1750713054858,-460.0,0.00020876,2]
[367243801,1750713054868,-318.474938,0.00020876,2]
[367243802,1750713054878,-318.474938,0.00020876,2]
[367243803,1750713054887,-208.068161,0.00020876,2]
[367243804,1750713054896,-208.068161,0.00020876,2]
[367243805,1750713054926,-151.342516,0.00020876,2]
[367243806,1750713054936,-151.342516,0.00020876,2]
[367243807,1750713054945,-460.0,0.00020876,2]
[367243808,1750713054955,-1763.36,0.00020876,2]
[367243809,1750713054964,-735.83,0.00020876,2]
[367243810,1750713054973,-6806.59,0.00020876,2]
[367243811,1750713054983,-1456.91,0.00020876,2]
[367243812,1750713054993,-1053.14,0.00020876,2]
[367243813,1750713055002,-460.0,0.00020876,2]
[367243814,1750713055013,-799.06,0.00020876,2]
[367243815,1750713055022,-460.0,0.00020876,2]
[367243816,1750713055032,-1090.77,0.00020876,2]
[367243817,1750713055041,-938.86,0.00020876,2]
[367243818,1750713055050,-292.776368,0.00020876,2]
[367243819,1750713055060,-292.776368,0.00020876,2]
[367243820,1750713055069,-2416.82,0.00020876,2]
[367243821,1750713055078,-951.38,0.00020876,2]
[367243822,1750713055087,-293.673515,0.00020876,2]
[367243823,1750713055097,-293.673515,0.00020876,2]
[367243824,1750713055106,-564.51,0.00020876,2]
[367243825,1750713055116,-151.0,0.00020878,2]
[367243826,1750713055125,-2907.4199,0.00020878,2]
[367243827,1750713055134,-2907.4199,0.00020878,2]
[367243828,1750713055143,-460.0,0.00020878,2]
[367243829,1750713055152,-460.0,0.00020878,2]
[367243830,1750713055161,-460.0,0.00020878,2]
[367243831,1750713055170,-638.1,0.00020878,2]
[367243832,1750713055179,-460.0,0.00020878,2]
[367243833,1750713055188,-460.0,0.00020878,2]
[367243834,1750713055197,-460.0,0.00020878,2]
[367243835,1750713055206,-741.03,0.00020878,2]
[367243836,1750713055215,-460.0,0.00020878,2]
[367243837,1750713055225,-749.26,0.00020878,2]
[367243838,1750713055234,-460.0,0.00020878,2]
[367243839,1750713055243,-526.39,0.00020878,2]
[367243840,1750713055252,-2964.55,0.00020878,2]
[367243841,1750713055261,-460.0,0.00020878,2]
[367243842,1750713055271,-460.0,0.00020878,2]
[367243843,1750713055280,-2045.16,0.00020878,2]
[367243844,1750713055289,-476.44,0.00020878,2]
[367243845,1750713055299,-610.23,0.00020878,2]
[367243846,1750713055308,-460.0,0.00020878,2]
[367243847,1750713055318,-3382.79,0.00020878,2]
[367243848,1750713055327,-588.75,0.00020878,2]
[367243849,1750713055337,-2795.99,0.00020878,2]
[367243850,1750713055347,-460.0,0.00020878,2]
[367243851,1750713055356,-460.0,0.00020878,2]
[367243852,1750713055365,-1238.41,0.00020878,2]
[367243853,1750713055375,-460.0,0.00020881,2]
[367243854,1750713055384,-757.95,0.00020881,2]
[367243855,1750713055394,-468.15,0.00020881,2]
[367243856,1750713055403,-460.0,0.00020881,2]
[367243857,1750713055412,-460.0,0.00020881,2]
[367243858,1750713055421,-460.0,0.00020881,2]
[367243859,1750713055430,-460.0,0.00020881,2]
[367243860,1750713055440,-460.0,0.00020881,2]
[367243861,1750713055450,-472.41,0.00020881,2]
[367243862,1750713055460,-696.67,0.00020881,2]
[367243863,1750713055474,-460.0,0.00020881,2]
[367243864,1750713055483,-632.2,0.00020881,2]
[367243865,1750713055493,-460.0,0.00020881,2]
[367243866,1750713055502,-800.0,0.00020885,2]
[367243867,1750713055514,-460.0,0.00020888,2]
[367243868,1750713055524,-460.0,0.00020888,2]
[367243869,1750713055533,-460.0,0.00020888,2]
[367243870,1750713055546,-460.0,0.00020889,2]
[367243871,1750713055556,-460.0,0.00020889,2]
[367243872,1750713055566,-460.0,0.00020889,2]
[367243873,1750713055575,-460.0,0.00020889,2]
[367243874,1750713055586,-460.0,0.00020889,2]
[367243875,1750713055595,-460.0,0.00020889,2]
[367243876,1750713055604,-460.0,0.00020889,2]
[367243877,1750713055613,-151.0,0.00020893,2]
[367243878,1750713055624,-232.854194,0.00020893,2]
[367243879,1750713055633,-232.854194,0.00020893,2]
[367243880,1750713055642,-151.0,0.00020893,2]
[367243881,1750713055652,-151.0,0.00020893,2]
[367243882,1750713055663,-168.0,0.00020899,2]
[367243883,1750713055674,-72060.83,0.000209,2]
[367243884,1750713055683,-159.567896,0.000209,2]
[367243885,1750713055697,-159.567896,0.000209,2]
[367243886,1750713055711,-151.0,0.000209,2]
[367243887,1750713055721,-151.0,0.000209,2]
[367243888,1750713055730,-151.0,0.000209,2]
[367243889,1750713055739,-320.415296,0.000209,2]
[367243890,1750713055749,-320.415296,0.000209,2]
[367243891,1750713055759,-1025.727858,0.000209,2]
[367243892,1750713055770,-1025.727858,0.000209,2]
[367243893,1750713055779,-151.0,0.000209,2]
[367243894,1750713055789,-151.0,0.000209,2]
[367243895,1750713055801,-151.0,0.000209,2]
[367243896,1750713055811,-151.0,0.000209,2]
[367243897,1750713055826,-151.0,0.000209,2]
[367243898,1750713055839,-170.504754,0.000209,2]
[367243899,1750713055848,-170.504754,0.000209,2]
[367243900,1750713055859,-151.0,0.000209,2]
[367243901,1750713055868,-767.071298,0.000209,2]
[367243902,1750713055878,-767.071298,0.000209,2]
[367243903,1750713055888,-151.0,0.000209,2]
[367243904,1750713055898,-151.0,0.000209,2]
[367243905,1750713055907,-749.477381,0.000209,2]
[367243906,1750713055917,-749.477381,0.000209,2]
[367243907,1750713055926,-151.0,0.000209,2]
[367243908,1750713055936,-151.0,0.00020916,2]
[367243909,1750713055945,-151.0,0.00020916,2]
[367243910,1750713055955,-222.134489,0.00020916,2]
[367243911,1750713055964,-222.134489,0.00020916,2]
[367243912,1750713055974,-168.543402,0.00020916,2]
[367243913,1750713055983,-168.543402,0.00020916,2]
[367243914,1750713055993,-2000.0,0.00020916,2]
[367243915,1750713056002,-2000.0,0.00020916,2]
[367243916,1750713056011,-2000.0,0.00020916,2]
[367243917,1750713056021,-555.818725,0.00020919,2]
[367243918,1750713056031,-555.818725,0.00020919,2]
[367243919,1750713056041,-940.36417818,0.00020919,2]
[367243920,1750713056054,-1000.0,0.00020924,2]
[367243921,1750713056064,-882.0,0.00020926,2]
[367243922,1750713056073,-420.0,0.00020942,2]
[367243923,1750713056082,-420.0,0.00020942,2]
[367243924,1750713056091,-420.0,0.00020942,2]
[367243925,1750713056101,-420.0,0.00020944,2]
[367243926,1750713056111,-151.0,0.00020957,2]
[367243927,1750713056120,-151.0,0.00020957,2]
[367243928,1750713056129,-151.0,0.00020957,2]
[367243929,1750713056139,-151.0,0.00020957,2]
[367243930,1750713056148,-151.0,0.00020957,2]
[367243931,1750713056157,-355.46739128,0.00020959,2]
[367243932,1750713056167,-882.0,0.00020973,2]
[367243933,1750713056177,-203.916072,0.00020973,2]
[367243934,1750713056186,-262.488634,0.00020973,2]
[367243935,1750713056196,-262.488634,0.00020973,2]
[367243936,1750713056205,-431.018653,0.00020973,2]
[367243937,1750713056215,-431.018653,0.00020973,2]
[367243938,1750713056224,-318.474938,0.0002099,2]
[367243939,1750713056234,-318.474938,0.0002099,2]
[367243940,1750713056243,-208.068161,0.0002099,2]
[367243941,1750713056253,-208.068161,0.0002099,2]
[367243942,1750713056262,-151.342516,0.0002099,2]
[367243943,1750713056272,-151.342516,0.0002099,2]
[367243944,1750713056282,-292.776368,0.0002099,2]
[367243945,1750713056291,-292.776368,0.0002099,2]
[367243946,1750713056301,-293.673515,0.0002099,2]
[367243947,1750713056310,-293.673515,0.0002099,2]
[367243948,1750713056320,-2161.0,0.0002099,2]
[367243949,1750713056329,-663.644,0.0002099,2]
[367243950,1750713056338,-407.0,0.00020993,2]
[367243951,1750713056350,-406.0,0.00020993,2]
[367243952,1750713056360,-151.0,0.00021,2]
[367243953,1750713056369,-355.46739128,0.00021041,2]
[367243954,1750713056378,-1680.0,0.00021043,2]
[367243955,1750713056387,-3167.0,0.00021062,2]
[367243956,1750713056397,-151.0,0.00021082,2]
[367243957,1750713056406,-151.0,0.00021082,2]
[367243958,1750713056415,-168.0,0.00021082,2]
[367243959,1750713056424,-2907.4199,0.00021095,2]
[367243960,1750713056433,-2907.4199,0.00021095,2]
[367243961,1750713056443,-500.0,0.00021095,8]